[Event "Test Tournament"]
[Site "Emanuel Lasker Arena"]
[Date "2024.04.09"]
[Round "4"]
[White "Knightess"]
[Black "Copacablanca"]
[Result "0-1"]
[WhiteElo "1620"]
[BlackElo "1922"]
[Annotator "RC"]
[PlyCount "72"]
[EventDate "2024.04.09"]
[EventType "swiss (blitz)"]
[TimeControl "60"]

1. e4 {[%emt 0:00:01]} e5 {[%emt 0:00:02]} 2. f4 {[%emt 0:00:01]} exf4 {[%emt 0:00:01]} 3. Nf3 {[%emt 0:00:02]} Nf6 {[%emt 0:00:01]} 4. e5 {[%emt 0:00:02]} Nh5 {[%emt 0:00:01]} 5. d4 {[%emt 0:00:01]} d5 {[%emt 0:00:01]} 6. Bb5+ {[%emt 0:00:05]} c6 {[%emt 0:00:05]} 7. g4 {[%emt 0:00:11]} Bxg4 {[%emt 0:00:01]} 8. h3 {[%emt 0:00:02]} Bb4+ {[%emt 0:00:11]} 9. Nc3 {[%emt 0:00:03]} Bxc3+ {[%emt 0:00:03]} 10. bxc3 {[%emt 0:00:01]} Bxf3 {[%emt 0:00:03]} 11. Qxf3 {[%emt 0:00:01]} Qh4+ {[%emt 0:00:03]} 12. Kd1 {[%emt 0:00:02]} cxb5 {[%emt 0:00:01]} 13. Qxd5 {[%emt 0:00:01]} O-O {[%emt 0:00:03]} 14. Qxb7 {[%emt 0:00:01]} Na6 {[%emt 0:00:02]} 15. Qxa6 {[%emt 0:00:02]} Ng3 {[%emt 0:00:01]} 16. Re1 {[%emt 0:00:02]} f3 {[%emt 0:00:02]} 17. Be3 {[%emt 0:00:02]} Qe4 {[%emt 0:00:01]} 18. Qxb5 {[%emt 0:00:01]} f2 {[%emt 0:00:02]} 19. Bxf2 {[%emt 0:00:02]} Qf3+ {[%emt 0:00:01]} 20. Kc1 {[%emt 0:00:01]} Qxf2 {[%emt 0:00:01]} 21. Kd1 {[%emt 0:00:01]} Rad8 {[%emt 0:00:02]} 22. Qb7 {[%emt 0:00:01]} Rxd4+ {[%emt 0:00:02]} 23. cxd4 {[%emt 0:00:01]} Qxd4+ {[%emt 0:00:01]} 24. Kc1 {[%emt 0:00:01]} Qxa1+ {[%emt 0:00:01]} 25. Qb1 {[%emt 0:00:01]} Qc3 {[%emt 0:00:01]} 26. Qb6 {[%emt 0:00:02]} axb6 {[%emt 0:00:01]} 27. Rh1 {[%emt 0:00:01]} Nxh1 {[%emt 0:00:01]} 28. e6 {[%emt 0:00:01]} Qe3+ {[%emt 0:00:01]} 29. Kb2 {[%emt 0:00:01]} Qe5+ {[%emt 0:00:01]} 30. c3 {[%emt 0:00:01]} Qe2+ {[%emt 0:00:01]} 31. Kc1 {[%emt 0:00:01]} Qe3+ {[%emt 0:00:01]} 32. Kc2 {[%emt 0:00:01]} Qe4+ {[%emt 0:00:01]} 33. Kc1 {[%emt 0:00:01]} Qf4+ {[%emt 0:00:01]} 34. Kb2 {[%emt 0:00:01]} Qd2+ {[%emt 0:00:01]} 35. Kb3 {[%emt 0:00:01]} fxe6 {[%emt 0:00:01]} 36. h4 {[%emt 0:00:01] .} Qd1+ {[%emt 0:00:00]} 0-1

[Event "Test Tournament"]
[Site "Emanuel Lasker Arena"]
[Date "2024.04.09"]
[Round "4"]
[White "Melancholia"]
[Black "NicholasRenzi"]
[Result "0-1"]
[WhiteElo "1620"]
[BlackElo "2016"]
[Annotator "RC"]
[PlyCount "58"]
[EventDate "2024.04.09"]
[EventType "swiss (blitz)"]
[TimeControl "60"]

1. d4 {[%emt 0:00:02]} d5 {[%emt 0:00:01]} 2. c4 {[%emt 0:00:02]} c6 {[%emt 0:00:01]} 3. Nf3 {[%emt 0:00:01]} Nf6 {[%emt 0:00:01]} 4. e3 {[%emt 0:00:01]} e6 {[%emt 0:00:01]} 5. Bd3 {[%emt 0:00:01]} Nbd7 {[%emt 0:00:01]} 6. O-O {[%emt 0:00:02]} dxc4 {[%emt 0:00:01]} 7. Bxc4 {[%emt 0:00:01]} b5 {[%emt 0:00:05]} 8. Bd3 {[%emt 0:00:05]} Bb7 {[%emt 0:00:01]} 9. a4 {[%emt 0:00:01]} a6 {[%emt 0:00:01]} 10. Qc2 {[%emt 0:00:04]} Bd6 {[%emt 0:00:01]} 11. Bd2 {[%emt 0:00:03]} O-O {[%emt 0:00:04]} 12. Ng5 {[%emt 0:00:03]} h6 {[%emt 0:00:02]} 13. d5 {[%emt 0:00:17]} Nc5 {[%emt 0:00:01]} 14. Bg6 {[%emt 0:00:02]} hxg5 {[%emt 0:00:01]} 15. b4 {[%emt 0:00:01]} Nxa4 {[%emt 0:00:03]} 16. dxc6 {[%emt 0:00:01]} Bxc6 {[%emt 0:00:03]} 17. Qxc6 {[%emt 0:00:01]} fxg6 {[%emt 0:00:01]} 18. Rc1 {[%emt 0:00:01]} Nd5 {[%emt 0:00:03]} 19. e4 {[%emt 0:00:02]} Nf4 {[%emt 0:00:01]} 20. Nc3 {[%emt 0:00:01]} Nxc3 {[%emt 0:00:02]} 21. Bxc3 {[%emt 0:00:01]} Ne2+ {[%emt 0:00:01]} 22. Kh1 {[%emt 0:00:01]} Nxc1 {[%emt 0:00:02]} 23. Rxc1 {[%emt 0:00:00]} Rxf2 {[%emt 0:00:02]} 24. e5 {[%emt 0:00:02]} Qf8 {[%emt 0:00:02]} 25. Rg1 {[%emt 0:00:01]} Bxb4 {[%emt 0:00:02]} 26. Bxb4 {[%emt 0:00:00]} Qe8 {[%emt 0:00:02]} 27. Qb7 {[%emt 0:00:02]} a5 {[%emt 0:00:02]} 28. Ra1 {[%emt 0:00:01]} a4 {[%emt 0:00:02]} 29. h3 {[%emt 0:00:01] .} Kh7 {[%emt 0:00:01]} 0-1

[Event "Test Tournament"]
[Site "Emanuel Lasker Arena"]
[Date "2024.04.09"]
[Round "4"]
[White "Schachmatz"]
[Black "Zimtowitch"]
[Result "1/2-1/2"]
[WhiteElo "1620"]
[BlackElo "1896"]
[Annotator "NA RC"]
[PlyCount "62"]
[EventDate "2024.04.09"]
[EventType "swiss (blitz)"]
[TimeControl "60"]

1. e4 {[%emt 0:00:01]} c5 {[%emt 0:00:01]} 2. f4 {[%emt 0:00:01]} Nc6 {[%emt 0:00:01]} 3. Nf3 {[%emt 0:00:02]} g6 {[%emt 0:00:01]} 4. Bb5 {[%emt 0:00:01]} Nd4 {[%emt 0:00:09]} 5. Nxd4 {[%emt 0:00:01]} cxd4 {[%emt 0:00:01]} 6. O-O {[%emt 0:00:01]} Bg7 {[%emt 0:00:01]} 7. d3 {[%emt 0:00:01]} Nf6 {[%emt 0:00:01]} 8. e5 {[%emt 0:00:01]} Nd5 {[%emt 0:00:05]} 9. Qf3 {[%emt 0:00:01]} Nb4 {[%emt 0:00:02]} 10. f5 {[%emt 0:00:06]} Nxc2 {[%emt 0:00:03]} 11. f6 {[%emt 0:00:03]} Bf8 {[%emt 0:00:03]} 12. Bg5 {[%emt 0:00:03]} exf6 {[%emt 0:00:01]} 13. Bxf6 {[%emt 0:00:01]} Qb6 {[%emt 0:00:03]} 14. Bxh8 {[%emt 0:00:01]} f5 {[%emt 0:00:03]} 15. exf6 {[%emt 0:00:03]} Kd8 {[%emt 0:00:01]} 16. Qd5 {[%emt 0:00:03]} Ne3 {[%emt 0:00:02]} 17. Qg8 {[%emt 0:00:02]} Nxf1 {[%emt 0:00:01]} 18. Qxf8+ {[%emt 0:00:02]} Kc7 {[%emt 0:00:01]} 19. f7 {[%emt 0:00:03]} Qxb5 {[%emt 0:00:01]} 20. Bxd4 {[%emt 0:00:02]} Qd5 {[%emt 0:00:02]} 21. Qh8 {[%emt 0:00:02]} Qxf7 {[%emt 0:00:01]} 22. Nc3 {[%emt 0:00:02]} Nd2 {[%emt 0:00:01]} 23. Re1 {[%emt 0:00:02]} Qf5 {[%emt 0:00:01]} 24. b4 {[%emt 0:00:02]} Qxd3 {[%emt 0:00:01]} 25. b5 {[%emt 0:00:02]} d6 {[%emt 0:00:01]} 26. Re7+ {[%emt 0:00:02]} Kb8 {[%emt 0:00:01]} 27. h4 {[%emt 0:00:01]} Qf1+ {[%emt 0:00:01]} 28. Kh2 {[%emt 0:00:01]} Qf4+ {[%emt 0:00:01]} 29. Kg1 {[%emt 0:00:01]} Qf1+ {[%emt 0:00:01]} 30. Kh2 {[%emt 0:00:01]} Qf4+ {[%emt 0:00:01]} 31. Kg1 {[%emt 0:00:01]} Qf1+ {[%emt 0:00:01] (Lag: Av=0.07s, max=0.5s)} 1/2-1/2

[Event "Test Tournament"]
[Site "Emanuel Lasker Arena"]
[Date "2024.04.09"]
[Round "4"]
[White "Triskaidekaphobe"]
[Black "Sunset"]
[Result "0-1"]
[WhiteElo "1620"]
[BlackElo "1878"]
[Annotator "NA RC"]
[PlyCount "98"]
[EventDate "2024.04.09"]
[EventType "swiss (blitz)"]
[TimeControl "60"]

1. e4 {[%emt 0:00:01]} e5 {[%emt 0:00:01]} 2. Nf3 {[%emt 0:00:01]} Nc6 {[%emt 0:00:01]} 3. Bb5 {[%emt 0:00:01]} a6 {[%emt 0:00:01]} 4. Ba4 {[%emt 0:00:01]} Nf6 {[%emt 0:00:01]} 5. O-O {[%emt 0:00:01]} Be7 {[%emt 0:00:01]} 6. Re1 {[%emt 0:00:01]} b5 {[%emt 0:00:01]} 7. Bb3 {[%emt 0:00:01]} O-O {[%emt 0:00:01]} 8. c3 {[%emt 0:00:01]} d6 {[%emt 0:00:01]} 9. d4 {[%emt 0:00:01]} Bg4 {[%emt 0:00:01]} 10. Be3 {[%emt 0:00:01]} exd4 {[%emt 0:00:01]} 11. cxd4 {[%emt 0:00:01]} Na5 {[%emt 0:00:01]} 12. Bc2 {[%emt 0:00:01]} c5 {[%emt 0:00:01]} 13. Nbd2 {[%emt 0:00:01]} cxd4 {[%emt 0:00:01]} 14. Bxd4 {[%emt 0:00:01]} Nc6 {[%emt 0:00:01]} 15. Be3 {[%emt 0:00:01]} d5 {[%emt 0:00:01]} 16. h3 {[%emt 0:00:01]} Bh5 {[%emt 0:00:01]} 17. Bf4 {[%emt 0:00:02]} Bb4 {[%emt 0:00:01]} 18. a3 {[%emt 0:00:02]} Bxd2 {[%emt 0:00:01]} 19. Qxd2 {[%emt 0:00:01]} Nxe4 {[%emt 0:00:01]} 20. Qd3 {[%emt 0:00:04]} Qb6 {[%emt 0:00:04]} 21. Be3 {[%emt 0:00:04]} Qd8 {[%emt 0:00:04]} 22. Bc5 {[%emt 0:00:03]} Re8 {[%emt 0:00:01]} 23. Nd4 {[%emt 0:00:03]} Ne5 {[%emt 0:00:04]} 24. Qe3 {[%emt 0:00:03]} Nxc5 {[%emt 0:00:01]} 25. b4 {[%emt 0:00:02]} Nf3+ {[%emt 0:00:01]} 26. Qxf3 {[%emt 0:00:02]} Bxf3 {[%emt 0:00:02]} 27. bxc5 {[%emt 0:00:01]} Rxe1+ {[%emt 0:00:01]} 28. Rxe1 {[%emt 0:00:01]} Be4 {[%emt 0:00:03]} 29. Bxe4 {[%emt 0:00:01]} dxe4 {[%emt 0:00:01]} 30. Rd1 {[%emt 0:00:03]} Qd5 {[%emt 0:00:02]} 31. g4 {[%emt 0:00:01]} Qxc5 {[%emt 0:00:01]} 32. g5 {[%emt 0:00:02]} Qxa3 {[%emt 0:00:02]} 33. Nc6 {[%emt 0:00:02]} Re8 {[%emt 0:00:02]} 34. Kh2 {[%emt 0:00:01]} a5 {[%emt 0:00:01]} 35. Rd7 {[%emt 0:00:01]} Qc3 {[%emt 0:00:01]} 36. Rc7 {[%emt 0:00:01]} b4 {[%emt 0:00:01]} 37. Ne7+ {[%emt 0:00:01]} Rxe7 {[%emt 0:00:01]} 38. Rxe7 {[%emt 0:00:01]} g6 {[%emt 0:00:01]} 39. Rxe4 {[%emt 0:00:01]} b3 {[%emt 0:00:01]} 40. Re8+ {[%emt 0:00:01]} Kg7 {[%emt 0:00:01]} 41. Re3 {[%emt 0:00:01]} Qb4 {[%emt 0:00:01]} 42. Rxb3 {[%emt 0:00:01]} Qxb3 {[%emt 0:00:01]} 43. h4 {[%emt 0:00:01]} Qb8+ {[%emt 0:00:01]} 44. Kg2 {[%emt 0:00:01]} Qb7+ {[%emt 0:00:01]} 45. Kg1 {[%emt 0:00:01]} Qb1+ {[%emt 0:00:01]} 46. Kg2 {[%emt 0:00:00]} Qe4+ {[%emt 0:00:01]} 47. Kg3 {[%emt 0:00:01]} Qe5+ {[%emt 0:00:01]} 48. Kg2 {[%emt 0:00:01]} Qe4+ {[%emt 0:00:00]} 49. f3 {[%emt 0:00:01]} Qe2+ {[%emt 0:00:01] Time (Lag: Av=0.07s, max=0.6s) .} 0-1

[Event "Test Tournament"]
[Site "Emanuel Lasker Arena"]
[Date "2024.04.09"]
[Round "4"]
[White "Botany"]
[Black "Mrs Florrick"]
[Result "0-1"]
[WhiteElo "1553"]
[BlackElo "1780"]
[Annotator "NA RC"]
[PlyCount "68"]
[EventDate "2024.04.09"]
[EventType "swiss (blitz)"]
[TimeControl "60"]

1. d4 {[%emt 0:00:01]} d5 {[%emt 0:00:01]} 2. c4 {[%emt 0:00:01]} e6 {[%emt 0:00:02]} 3. Nc3 {[%emt 0:00:01]} c5 {[%emt 0:00:01]} 4. cxd5 {[%emt 0:00:01]} exd5 {[%emt 0:00:01]} 5. e4 {[%emt 0:00:01]} dxe4 {[%emt 0:00:01]} 6. d5 {[%emt 0:00:01]} Nf6 {[%emt 0:00:01]} 7. Nxe4 {[%emt 0:00:01]} Nxd5 {[%emt 0:00:01]} 8. Bb5+ {[%emt 0:00:03]} Bd7 {[%emt 0:00:04]} 9. Qxd5 {[%emt 0:00:07]} Bxb5 {[%emt 0:00:01]} 10. Qxb7 {[%emt 0:00:02]} Bc6 {[%emt 0:00:04]} 11. Qb3 {[%emt 0:00:01]} Bxe4 {[%emt 0:00:01]} 12. Qb5+ {[%emt 0:00:03]} Qd7 {[%emt 0:00:02]} 13. Qxd7+ {[%emt 0:00:04]} Nxd7 {[%emt 0:00:01]} 14. b4 {[%emt 0:00:03]} cxb4 {[%emt 0:00:02]} 15. h4 {[%emt 0:00:04]} O-O-O {[%emt 0:00:04]} 16. Rh3 {[%emt 0:00:02]} Ne5 {[%emt 0:00:03]} 17. Bf4 {[%emt 0:00:02]} f6 {[%emt 0:00:02]} 18. Bxe5 {[%emt 0:00:02]} fxe5 {[%emt 0:00:01]} 19. a4 {[%emt 0:00:02]} bxa3 {[%emt 0:00:02]} 20. Rc3+ {[%emt 0:00:01]} Kb7 {[%emt 0:00:02]} 21. Rb3+ {[%emt 0:00:01]} Kc7 {[%emt 0:00:02]} 22. Rc3+ {[%emt 0:00:01]} Kb6 {[%emt 0:00:02]} 23. Rb3+ {[%emt 0:00:01]} Kc6 {[%emt 0:00:02]} 24. Rc3+ {[%emt 0:00:02]} Bc5 {[%emt 0:00:01]} 25. Raxa3 {[%emt 0:00:01]} Bxg2 {[%emt 0:00:03]} 26. Rxa7 {[%emt 0:00:01]} Rd3 {[%emt 0:00:02]} 27. Rxd3 {[%emt 0:00:02]} Bxa7 {[%emt 0:00:01]} 28. Rg3 {[%emt 0:00:01]} Be4 {[%emt 0:00:01]} 29. Rxg7 {[%emt 0:00:01]} Bc5 {[%emt 0:00:01]} 30. Ne2 {[%emt 0:00:01]} Bd3 {[%emt 0:00:01]} 31. Kd2 {[%emt 0:00:01]} Bc4 {[%emt 0:00:01]} 32. f4 {[%emt 0:00:01]} e4 {[%emt 0:00:01]} 33. Rg5 {[%emt 0:00:01]} Rg8 {[%emt 0:00:01]} 34. Rxg8 {[%emt 0:00:01] .} Bxg8 {[%emt 0:00:01]} 0-1

[Event "Test Tournament"]
[Site "Emanuel Lasker Arena"]
[Date "2024.04.09"]
[Round "5"]
[White "Sauerbruch"]
[Black "Encheladus"]
[Result "1-0"]
[WhiteElo "1620"]
[BlackElo "1620"]
[Annotator "NA RC"]
[PlyCount "25"]
[EventDate "2024.04.09"]
[EventType "swiss (blitz)"]
[TimeControl "60"]

1. e4 {[%emt 0:00:01]} c6 {[%emt 0:00:01]} 2. d4 {[%emt 0:00:01]} d5 {[%emt 0:00:01]} 3. e5 {[%emt 0:00:01]} Bf5 {[%emt 0:00:02]} 4. g4 {[%emt 0:00:01]} Be4 {[%emt 0:00:01]} 5. f3 {[%emt 0:00:01]} Bg6 {[%emt 0:00:06]} 6. h4 {[%emt 0:00:01]} f6 {[%emt 0:00:01]} 7. h5 {[%emt 0:00:05]} Qa5+ {[%emt 0:00:07]} 8. Bd2 {[%emt 0:00:02]} Qa4 {[%emt 0:00:01]} 9. hxg6 {[%emt 0:00:01]} Qxd4 {[%emt 0:00:01]} 10. exf6 {[%emt 0:00:01]} Nxf6 {[%emt 0:00:01]} 11. Qe2 {[%emt 0:00:04]} Qxb2 {[%emt 0:00:01]} 12. Qe6 {[%emt 0:00:03]} Qxa1 {[%emt 0:00:03]} 13. Qc8# {[%emt 0:00:03] (Lag: Av=0.18s, max=1.0s)} 1-0

[Event "Test Tournament"]
[Site "Emanuel Lasker Arena"]
[Date "2024.04.09"]
[Round "6"]
[White "Hollis"]
[Black "Churchill"]
[Result "1-0"]
[WhiteElo "1881"]
[BlackElo "1620"]
[Annotator "NA RC"]
[PlyCount "29"]
[EventDate "2024.04.09"]
[EventType "swiss (blitz)"]
[TimeControl "60"]

1. c4 {[%emt 0:00:01]} c5 {[%emt 0:00:01]} 2. Nf3 {[%emt 0:00:01]} Nc6 {[%emt 0:00:00]} 3. Nc3 {[%emt 0:00:01]} g6 {[%emt 0:00:02]} 4. e3 {[%emt 0:00:01]} Nf6 {[%emt 0:00:02]} 5. d4 {[%emt 0:00:02]} d5 {[%emt 0:00:01]} 6. dxc5 {[%emt 0:00:01]} Nb4 {[%emt 0:00:05]} 7. Nxd5 {[%emt 0:00:02]} Nfxd5 {[%emt 0:00:02]} 8. cxd5 {[%emt 0:00:01]} Nxd5 {[%emt 0:00:01]} 9. Ne5 {[%emt 0:00:04]} Qa5+ {[%emt 0:00:04]} 10. Bd2 {[%emt 0:00:04]} Nb4 {[%emt 0:00:02]} 11. Bc4 {[%emt 0:00:04]} Bh6 {[%emt 0:00:05]} 12. Bxf7+ {[%emt 0:00:02]} Kf8 {[%emt 0:00:02]} 13. O-O {[%emt 0:00:03]} Qxc5 {[%emt 0:00:02]} 14. Bc3 {[%emt 0:00:04]} Nc2 {[%emt 0:00:03]} 15. Qd8+ {[%emt 0:00:03] Churchill resigns (Lag: Av=0.11s, max=1.0s)} 1-0

[Event "Test Tournament"]
[Site "Emanuel Lasker Arena"]
[Date "2024.04.09"]
[Round "6"]
[White "LiliBeth"]
[Black "Triskaidekaphobe"]
[Result "0-1"]
[WhiteElo "1853"]
[BlackElo "1620"]
[Annotator "NA RC"]
[PlyCount "56"]
[EventDate "2024.04.09"]
[EventType "swiss (blitz)"]
[TimeControl "60"]

1. d4 {[%emt 0:00:02]} Nf6 {[%emt 0:00:01]} 2. c4 {[%emt 0:00:01]} c5 {[%emt 0:00:01]} 3. d5 {[%emt 0:00:01]} b5 {[%emt 0:00:01]} 4. cxb5 {[%emt 0:00:01]} a6 {[%emt 0:00:01]} 5. bxa6 {[%emt 0:00:01]} g6 {[%emt 0:00:01]} 6. Nc3 {[%emt 0:00:00]} Bxa6 {[%emt 0:00:01]} 7. g3 {[%emt 0:00:02]} d6 {[%emt 0:00:01]} 8. Bg2 {[%emt 0:00:01]} Bg7 {[%emt 0:00:01]} 9. Nf3 {[%emt 0:00:01]} O-O {[%emt 0:00:01]} 10. O-O {[%emt 0:00:01]} Nbd7 {[%emt 0:00:01]} 11. Rb1 {[%emt 0:00:01]} Ng4 {[%emt 0:00:01]} 12. Bf4 {[%emt 0:00:01]} Qa5 {[%emt 0:00:01]} 13. a4 {[%emt 0:00:04]} Bxc3 {[%emt 0:00:01]} 14. bxc3 {[%emt 0:00:01]} Qxc3 {[%emt 0:00:01]} 15. Ng5 {[%emt 0:00:07]} Rab8 {[%emt 0:00:04]} 16. h3 {[%emt 0:00:03]} h6 {[%emt 0:00:04]} 17. Qd4 {[%emt 0:00:22]} Qxd4 {[%emt 0:00:01]} 18. hxg4 {[%emt 0:00:01]} hxg5 {[%emt 0:00:01]} 19. Bxg5 {[%emt 0:00:01]} Rxb1 {[%emt 0:00:01]} 20. Rxb1 {[%emt 0:00:01]} Qxa4 {[%emt 0:00:01]} 21. Bxe7 {[%emt 0:00:01]} Bxe2 {[%emt 0:00:03]} 22. Bxf8 {[%emt 0:00:00]} Kxf8 {[%emt 0:00:01]} 23. g5 {[%emt 0:00:01]} Bd3 {[%emt 0:00:01]} 24. Rb8+ {[%emt 0:00:01]} Nxb8 {[%emt 0:00:01]} 25. Kh2 {[%emt 0:00:01]} Na6 {[%emt 0:00:02]} 26. Bf3 {[%emt 0:00:01]} Qc2 {[%emt 0:00:02] .} 27. Kg2 {[%emt 0:00:01]} Qb3 {[%emt 0:00:01]} 28. Kh2 {[%emt 0:00:01]} Qc3 {[%emt 0:00:02]} 0-1

[Event "Test Tournament"]
[Site "Emanuel Lasker Arena"]
[Date "2024.04.09"]
[Round "6"]
[White "CheckMaid"]
[Black "Knightess"]
[Result "0-1"]
[WhiteElo "1645"]
[BlackElo "1620"]
[Annotator "NA RC"]
[PlyCount "34"]
[EventDate "2024.04.09"]
[EventType "swiss (blitz)"]
[TimeControl "60"]

1. e4 {[%emt 0:00:01]} g6 {[%emt 0:00:02]} 2. d4 {[%emt 0:00:02]} d6 {[%emt 0:00:02]} 3. Nc3 {[%emt 0:00:02]} Bg7 {[%emt 0:00:02]} 4. f4 {[%emt 0:00:01]} Nf6 {[%emt 0:00:01]} 5. Nf3 {[%emt 0:00:01]} O-O {[%emt 0:00:01]} 6. e5 {[%emt 0:00:01]} dxe5 {[%emt 0:00:02]} 7. fxe5 {[%emt 0:00:01]} Nd5 {[%emt 0:00:02]} 8. h4 {[%emt 0:00:01]} Bg4 {[%emt 0:00:01]} 9. Ne4 {[%emt 0:00:01]} f5 {[%emt 0:00:02]} 10. Bc4 {[%emt 0:00:13]} fxe4 {[%emt 0:00:01]} 11. c3 {[%emt 0:00:03]} exf3 {[%emt 0:00:01]} 12. gxf3 {[%emt 0:00:01]} Rxf3 {[%emt 0:00:01]} 13. h5 {[%emt 0:00:03]} e6 {[%emt 0:00:03]} 14. hxg6 {[%emt 0:00:02]} b5 {[%emt 0:00:03]} 15. gxh7+ {[%emt 0:00:01]} Kh8 {[%emt 0:00:02]} 16. Bd3 {[%emt 0:00:02]} Ne3 {[%emt 0:00:03]} 17. Qe2 {[%emt 0:00:02]} Qg5 {[%emt 0:00:03] CheckMaid resigns (Lag: Av=0.11s, max=1.0s)} 0-1

[Event "Test Tournament"]
[Site "Emanuel Lasker Arena"]
[Date "2024.04.09"]
[Round "6"]
[White "Don Rodrigo"]
[Black "Zimtowitch"]
[Result "0-1"]
[WhiteElo "1620"]
[BlackElo "1896"]
[Annotator "NA RC"]
[PlyCount "58"]
[EventDate "2024.04.09"]
[EventType "swiss (blitz)"]
[TimeControl "60"]

1. e4 {[%emt 0:00:01]} c5 {[%emt 0:00:01]} 2. Nf3 {[%emt 0:00:01]} d6 {[%emt 0:00:01]} 3. d4 {[%emt 0:00:01]} cxd4 {[%emt 0:00:01]} 4. Nxd4 {[%emt 0:00:01]} Nf6 {[%emt 0:00:01]} 5. Nc3 {[%emt 0:00:01]} g6 {[%emt 0:00:01]} 6. Be3 {[%emt 0:00:01]} Bg7 {[%emt 0:00:01]} 7. f3 {[%emt 0:00:02]} O-O {[%emt 0:00:01]} 8. Qd2 {[%emt 0:00:01]} Nc6 {[%emt 0:00:01]} 9. O-O-O {[%emt 0:00:01]} d5 {[%emt 0:00:01]} 10. Qe1 {[%emt 0:00:01]} e5 {[%emt 0:00:01]} 11. Nb3 {[%emt 0:00:01]} d4 {[%emt 0:00:01]} 12. Qh4 {[%emt 0:00:09]} Qe7 {[%emt 0:00:02]} 13. Bd2 {[%emt 0:00:03]} dxc3 {[%emt 0:00:01]} 14. Bxc3 {[%emt 0:00:01]} Rd8 {[%emt 0:00:04]} 15. Bc4 {[%emt 0:00:03]} b6 {[%emt 0:00:09]} 16. a4 {[%emt 0:00:03]} Be6 {[%emt 0:00:03]} 17. Ba6 {[%emt 0:00:03]} Nb4 {[%emt 0:00:03]} 18. Bb5 {[%emt 0:00:02]} Na2+ {[%emt 0:00:01]} 19. Kb1 {[%emt 0:00:01]} Nxc3+ {[%emt 0:00:01]} 20. bxc3 {[%emt 0:00:01]} Qa3 {[%emt 0:00:02]} 21. h3 {[%emt 0:00:02]} a6 {[%emt 0:00:02]} 22. Bc6 {[%emt 0:00:02]} Bxb3 {[%emt 0:00:01]} 23. cxb3 {[%emt 0:00:01]} Qxb3+ {[%emt 0:00:01]} 24. Kc1 {[%emt 0:00:01]} Qxc3+ {[%emt 0:00:01]} 25. Kb1 {[%emt 0:00:01]} Qxc6 {[%emt 0:00:01]} 26. Rd7 {[%emt 0:00:01]} Rxd7 {[%emt 0:00:01]} 27. g4 {[%emt 0:00:02]} Rd2 {[%emt 0:00:02]} 28. Qg5 {[%emt 0:00:01]} Qc2+ {[%emt 0:00:01]} 29. Ka1 {[%emt 0:00:01]} Qb2# {[%emt 0:00:01] (Lag: Av=0.15s, max=1.1s)} 0-1

[Event "Test Tournament"]
[Site "Emanuel Lasker Arena"]
[Date "2024.04.09"]
[Round "6"]
[White "Encheladus"]
[Black "Botwinzig"]
[Result "1-0"]
[WhiteElo "1620"]
[BlackElo "1810"]
[Annotator "NA RC"]
[PlyCount "41"]
[EventDate "2024.04.09"]
[EventType "swiss (blitz)"]
[TimeControl "60"]

1. e4 {[%emt 0:00:01]} c5 {[%emt 0:00:01]} 2. Nf3 {[%emt 0:00:01]} d6 {[%emt 0:00:01]} 3. d4 {[%emt 0:00:01]} cxd4 {[%emt 0:00:01]} 4. Nxd4 {[%emt 0:00:01]} Nf6 {[%emt 0:00:01]} 5. Nc3 {[%emt 0:00:01]} g6 {[%emt 0:00:01]} 6. Be3 {[%emt 0:00:01]} Bg7 {[%emt 0:00:01]} 7. f3 {[%emt 0:00:01]} Qa5 {[%emt 0:00:01]} 8. Qd2 {[%emt 0:00:01]} Nc6 {[%emt 0:00:04]} 9. O-O-O {[%emt 0:00:05]} O-O {[%emt 0:00:01]} 10. g4 {[%emt 0:00:03]} Rd8 {[%emt 0:00:02]} 11. Bc4 {[%emt 0:00:06]} Ne5 {[%emt 0:00:01]} 12. Qe2 {[%emt 0:00:04]} Nxc4 {[%emt 0:00:01]} 13. Qxc4 {[%emt 0:00:01]} Bd7 {[%emt 0:00:02]} 14. Ndb5 {[%emt 0:00:03]} Rac8 {[%emt 0:00:03]} 15. Qb3 {[%emt 0:00:03]} h5 {[%emt 0:00:03]} 16. Nxa7 {[%emt 0:00:03]} Be6 {[%emt 0:00:03]} 17. Qa4 {[%emt 0:00:02]} Bh6 {[%emt 0:00:29]} 18. Qxa5 {[%emt 0:00:01]} Bxe3+ {[%emt 0:00:01]} 19. Rd2 {[%emt 0:00:01]} Ra8 {[%emt 0:00:01]} 20. g5 {[%emt 0:00:02]} Nd7 {[%emt 0:00:01]} 21. Ncb5 {[%emt 0:00:02] Time (Lag: Av=0.16s, max=1.2s) '} 1-0

[Event "Test Tournament"]
[Site "Emanuel Lasker Arena"]
[Date "2024.04.09"]
[Round "6"]
[White "Klaus Junge"]
[Black "NicholasRenzi"]
[Result "0-1"]
[WhiteElo "1620"]
[BlackElo "2016"]
[Annotator "RC"]
[PlyCount "74"]
[EventDate "2024.04.09"]
[EventType "swiss (blitz)"]
[TimeControl "60"]

1. e4 {[%emt 0:00:01]} e5 {[%emt 0:00:01]} 2. Nf3 {[%emt 0:00:01]} Nc6 {[%emt 0:00:01]} 3. Bb5 {[%emt 0:00:01]} a6 {[%emt 0:00:01]} 4. Ba4 {[%emt 0:00:01]} Nf6 {[%emt 0:00:01]} 5. O-O {[%emt 0:00:01]} Be7 {[%emt 0:00:01]} 6. Re1 {[%emt 0:00:01]} b5 {[%emt 0:00:01]} 7. Bb3 {[%emt 0:00:01]} O-O {[%emt 0:00:01]} 8. c3 {[%emt 0:00:01]} d6 {[%emt 0:00:01]} 9. d4 {[%emt 0:00:01]} Bg4 {[%emt 0:00:01]} 10. Be3 {[%emt 0:00:01]} exd4 {[%emt 0:00:01]} 11. cxd4 {[%emt 0:00:01]} Na5 {[%emt 0:00:01]} 12. h3 {[%emt 0:00:01]} Nxb3 {[%emt 0:00:01]} 13. axb3 {[%emt 0:00:01]} Bh5 {[%emt 0:00:01]} 14. Bf4 {[%emt 0:00:01]} c5 {[%emt 0:00:01]} 15. g4 {[%emt 0:00:04]} Qd7 {[%emt 0:00:10]} 16. Nc3 {[%emt 0:00:01]} b4 {[%emt 0:00:03]} 17. e5 {[%emt 0:00:04]} bxc3 {[%emt 0:00:01]} 18. exf6 {[%emt 0:00:01]} Bxf6 {[%emt 0:00:01]} 19. gxh5 {[%emt 0:00:01]} cxb2 {[%emt 0:00:01]} 20. Ra5 {[%emt 0:00:04]} Qxh3 {[%emt 0:00:03]} 21. Bxd6 {[%emt 0:00:01]} cxd4 {[%emt 0:00:02]} 22. Qd3 {[%emt 0:00:01]} Rfe8 {[%emt 0:00:02]} 23. Be5 {[%emt 0:00:03]} h6 {[%emt 0:00:02]} 24. Rb1 {[%emt 0:00:03]} Rac8 {[%emt 0:00:02]} 25. Re1 {[%emt 0:00:02]} Rc3 {[%emt 0:00:02]} 26. Qd2 {[%emt 0:00:02]} Qxf3 {[%emt 0:00:02]} 27. Qxb2 {[%emt 0:00:01]} Qh3 {[%emt 0:00:02]} 28. Qd2 {[%emt 0:00:02]} Rd3 {[%emt 0:00:01]} 29. Bxf6 {[%emt 0:00:03]} Qg4+ {[%emt 0:00:01]} 30. Kf1 {[%emt 0:00:01]} Rxd2 {[%emt 0:00:01]} 31. Rxe8+ {[%emt 0:00:01]} Kh7 {[%emt 0:00:01]} 32. Ra1 {[%emt 0:00:01]} gxf6 {[%emt 0:00:01]} 33. b4 {[%emt 0:00:01]} Qf3 {[%emt 0:00:01]} 34. Rf8 {[%emt 0:00:01]} Kg7 {[%emt 0:00:01]} 35. Rxa6 {[%emt 0:00:01]} Rxf2+ {[%emt 0:00:01]} 36. Kg1 {[%emt 0:00:01]} Qg3+ {[%emt 0:00:01]} 37. Kh1 {[%emt 0:00:01]} Rh2# {[%emt 0:00:01] (Lag: Av=0.11s, max=0.9s)} 0-1